Cogmind - Beta 12 @@@ ROGUE MODE // 2023.04.17 @ 00:03:21 Player: Mr Goldstein Result: Destroyed by G-50 Soldier with Heavy Laser Performance ------------- Evolutions (2) 1000 Regions Visited (3) 600 Robots Destroyed (1) 5 Value Destroyed (5) 5 Prototype IDs (0) 0 Alien Tech Used (0) 0 Bonus (200) 200 TOTAL SCORE: 1810 Bonus ------- Pacifist 200 Cogmind --------- Core Integrity 0/550 Matter 293/300 Energy 90/100 System Corruption 2% Temperature Cool (18) Movement Core (50) Location -8/Materials Parts ------- > --- POWER (1) -------- (None) > --- PROPULSION (4) --- (None) > --- UTILITY (4) ------ (None) > --- WEAPON (2) ------- (None) > --- INVENTORY (5) ---- Large Storage Unit Large Storage Unit Large Storage Unit Medium Battery (150) Medium Battery (150) Peak State ------------ > --- POWER ------------ (None) > --- PROPULSION ------- Airjet Airjet Airjet > --- UTILITY ---------- (None) > --- WEAPON ----------- (None) > --- INVENTORY -------- Large Storage Unit Large Storage Unit Large Storage Unit Medium Battery Medium Battery [Rating: 9] Favorites ----------- Power None Propulsion Airjet Hover Unit Airjet Utility None Weapon None Build | -11 -10 -9 -8 ------- Run | Jun Mat Mat Mat Slots Evolved 4 | . . 2 2 Power . | . . . . Propulsion 2 | . . 2 . Utility 2 | . . . 2 Weapon . | . . . . Parts Attached 3 | . . . 3 Power . | . . . . Engine . | . . . . Core . | . . . . Reactor . | . . . . Propulsion 3 | . . . 3 Treads . | . . . . Leg . | . . . . Wheel . | . . . . Hover 3 | . . . 3 Flight . | . . . . Utility . | . . . . Device . | . . . . Storage . | . . . . Processor . | . . . . Hackware . | . . . . Protection . | . . . . Artifact . | . . . . Weapon . | . . . . Energy Gun . | . . . . Energy Cannon . | . . . . Ballistic Gun . | . . . . Ballistic Cannon . | . . . . Launcher . | . . . . Special Weapon . | . . . . Impact Weapon . | . . . . Slashing Weapon . | . . . . Piercing Weapon . | . . . . Special Melee Weapon . | . . . . Unidentified Prototypes . | . . . . Parts Lost 3 | . . . 3 Power . | . . . . Propulsion 3 | . . . 3 Utility . | . . . . Weapon . | . . . . Highest Loss Streak 3 | . . . 3 To Critical Strikes . | . . . . Average Slot Usage (%) . | . . . 3 Naked Turns 292 | . 90 120 82 Heaviest Build . | . . . . Greatest Support 24 | 3 3 3 24 Greatest Overweight (x) . | . . . . Average Overweight (x) . | . . . . Largest Inventory Capacity 5 | 5 5 5 5 Average Capacity 5 | 5 5 5 5 Most Carried 5 | . 2 5 5 Average Carried 3 | . . 4 5 Final Capacity 5 | 5 5 5 5 Final Carried 5 | . 2 5 5 Class Distribution -------------------- 100% | Mutant Dominant Class ---------------- Mutant | -10/Materials Mutant | -9/Materials Mutant | -8/Materials Resources | -11 -10 -9 -8 ----------- Run | Jun Mat Mat Mat Matter Collected 189 | 123 66 . . Remotely . | . . . . Salvage Created 15 | . . 15 . Parts 3 | . . 3 . Haulers Intercepted . | . . . . Recyclers Shooed 1 | . . 1 . Parts Field Recycled . | . . . . Retrieved Matter . | . . . . Parts Self-Destructed . | . . . . Prevented . | . . . . Kills | -11 -10 -9 -8 ------- Run | Jun Mat Mat Mat Combat Hostiles Destroyed . | . . . . Classes Destroyed 1 | . . 1 . Builder 1 | . . 1 . Best Kill Streak 1 | . . 1 . Combat Bots Only . | . . . . Max Kills in Single Turn 1 | . . 1 . Gunslinging . | . . . . Exploded . | . . . . Melee . | . . . . Uniques/NPCs Destroyed . | . . . . Combat | -11 -10 -9 -8 -------- Run | Jun Mat Mat Mat Damage Taken 1052 | . 126 244 682 Core 928 | . 126 244 558 Absorbed by Shields . | . . . . Core Remaining (%) 62 | 100 49 39 . Volleys Fired . | . . . . Largest . | . . . . Hottest . | . . . . Shots Fired . | . . . . Gun . | . . . . Cannon . | . . . . Launcher . | . . . . Special . | . . . . Kinetic . | . . . . Thermal . | . . . . Explosive . | . . . . Electromagnetic . | . . . . Robot Hit Streak . | . . . . Robot Miss Streak . | . . . . Penetration Max . | . . . . Secondary Targets . | . . . . Shots Hit Robots . | . . . . Core Hits 3 | . 1 1 1 Critical Kills . | . . . . Critical Parts Destroyed . | . . . . Critical Strikes . | . . . . Melee Attacks . | . . . . Impact . | . . . . Slashing . | . . . . Piercing . | . . . . Sneak Attacks . | . . . . Combat Hostiles . | . . . . Follow-up Attacks . | . . . . Damage Inflicted 73 | . 19 27 27 Guns . | . . . . Cannons . | . . . . Explosions . | . . . . Melee . | . . . . Ramming 73 | . 19 27 27 Kinetic . | . . . . Thermal . | . . . . Explosive . | . . . . Electromagnetic . | . . . . Impact . | . . . . Slashing . | . . . . Piercing . | . . . . Highest Corruption 3 | . 1 3 2 Average Corruption 2 | . 1 2 2 Corruption Purged . | . . . . Corruption Blocked . | . . . . Effects 2 | . . 1 1 Message Errors 1 | . . . 1 Matter Fused 1 | . . 1 . Overload Shots . | . . . . Overflow Damage . | . . . . Projectiles . | . . . . Explosions . | . . . . Melee . | . . . . Knockbacks . | . . . . Impact . | . . . . Kinetic . | . . . . Secondary . | . . . . Self-Inflicted Damage 33 | . 8 12 13 Shots . | . . . . Rammed 21 | . 6 6 9 Targets Rammed 21 | . 6 6 9 Kicked . | . . . . Crushed . | . . . . Highest Temperature 14 | . . . 14 Average Temperature 7 | . . . 7 Received Heat Transfer 444 | . 54 102 288 Siege Activations . | . . . . Robots Corrupted . | . . . . Combat Hostiles . | . . . . Parts Fried . | . . . . Impact Corruptions . | . . . . Robots Melted . | . . . . Combat Hostiles . | . . . . Parts Melted . | . . . . Heat Transferred . | . . . . Parts Sabotaged . | . . . . Parts Stolen . | . . . . Parts Stripped . | . . . . Power Chain Reactions . | . . . . Missiles Intercepted . | . . . . Alert | -11 -10 -9 -8 ------- Run | Jun Mat Mat Mat Peak Influence 222 | . 45 173 222 Initial 72 | . . 18 72 Average 74 | . 15 86 126 Maximum Alert Level 1 | . . . 1 Low Security (%) 95 | 100 100 100 84 Level 1 4 | . . . 15 Level 2 . | . . . . Level 3 . | . . . . Level 4 . | . . . . Level 5 . | . . . . High Security . | . . . . Max Security . | . . . . Squads Dispatched 3 | . . 1 2 Investigation . | . . . . Extermination . | . . . . Reinforcement 3 | . . 1 2 Assault . | . . . . Garrison . | . . . . Intercept . | . . . . Searches Triggered . | . . . . Construction Impeded 1 | . . . 1 Haulers Reinforced . | . . . . Active Scanning Responses . | . . . . Cargo Convoy Interrupts . | . . . . Stealth | -11 -10 -9 -8 --------- Run | Jun Mat Mat Mat Distress Signals 2 | . . 2 . Communications Jammed . | . . . . Distress Signals . | . . . . Times Spotted 42 | . 4 14 24 Peak Tracking Total 19 | . 4 10 19 Tactical Retreats 6 | . 1 3 2 Traps | -11 -10 -9 -8 ------- Run | Jun Mat Mat Mat Traps Triggered 2 | . 1 . 1 Indirectly . | . . . . Trap Hack Attempts . | . . . . Triggered . | . . . . Disarmed . | . . . . Reprogrammed . | . . . . Reused . | . . . . Traps Extracted . | . . . . Installed . | . . . . Triggered . | . . . . Machines | -11 -10 -9 -8 ---------- Run | Jun Mat Mat Mat Machines Disabled . | . . . . Max in Single Turn . | . . . . Machines Repaired . | . . . . Machines Sabotaged . | . . . . Overloaded Fab Kills . | . . . . Hacking | -11 -10 -9 -8 --------- Run | Jun Mat Mat Mat Machines Accessed . | . . . . Terminals . | . . . . Fabricators . | . . . . Repair Stations . | . . . . Recycling Units . | . . . . Scanalyzers . | . . . . Garrison Access . | . . . . Total Hacks . | . . . . Successful . | . . . . Failed . | . . . . Catastrophic . | . . . . Database Lockouts . | . . . . Manual . | . . . . Terminals . | . . . . Fabricators . | . . . . Repair Stations . | . . . . Recycling Units . | . . . . Scanalyzers . | . . . . Garrison Access . | . . . . Terminal Hacks . | . . . . Fabricator Hacks . | . . . . Repair Station Hacks . | . . . . Recycling Unit Hacks . | . . . . Scanalyzer . | . . . . Garrison Access Hacks . | . . . . Unauthorized Hacks . | . . . . Terminals . | . . . . Fabricators . | . . . . Repair Stations . | . . . . Recycling Units . | . . . . Scanalyzers . | . . . . Garrison Access . | . . . . Data Cores Recovered . | . . . . Used . | . . . . Hacking Detections . | . . . . Full Trace Events . | . . . . Feedback Events . | . . . . Feedback Blocked . | . . . . Robot Schematics Acquired . | . . . . Robots Built . | . . . . Authchips . | . . . . Time . | . . . . Total Robot Build Rating . | . . . . Part Schematics Acquired . | . . . . Parts Built . | . . . . Authchips . | . . . . Time . | . . . . Total Part Build Rating . | . . . . Parts Repaired . | . . . . Time . | . . . . Parts Recycled . | . . . . Recycled Matter . | . . . . Retrieved Matter . | . . . . Retrieved Components . | . . . . Parts Scanalyzed . | . . . . Part Schematics Acquired . | . . . . Parts Damaged . | . . . . Bothacking | -11 -10 -9 -8 ------------ Run | Jun Mat Mat Mat Used RIF Installer . | . . . . Robots Hacked . | . . . . Non-combat . | . . . . Combat . | . . . . Robot Hacks Applied . | . . . . Relay Couplers Released . | . . . . Fabnet Peak Effective % . | . . . . Robots Rewired . | . . . . Allies Hacked . | . . . . Hacks Repelled . | . . . . Allies | -11 -10 -9 -8 -------- Run | Jun Mat Mat Mat Total Allies . | . . . . Largest Group . | . . . . Highest-Rated Group . | . . . . Highest-Rated Ally . | . . . . Total Orders . | . . . . Ally Attacks . | . . . . Total Damage . | . . . . Kills . | . . . . Allies Corrupted . | . . . . Allies Melted . | . . . . Intel | -11 -10 -9 -8 ------- Run | Jun Mat Mat Mat Robot Analysis Total . | . . . . Derelict Logs Recovered . | . . . . Drone Launches . | . . . . Drone Recoveries . | . . . . Exploration | -11 -10 -9 -8 ------------- Run | Jun Mat Mat Mat Turns Passed 309 | 9 90 120 90 Spaces Moved 549 | 18 164 219 148 Core 541 | 18 164 219 140 Treads . | . . . . Legs . | . . . . Wheels . | . . . . Hover 8 | . . . 8 Flight . | . . . . Fastest Speed 50 | 50 50 50 50 Average Speed 50 | 50 50 50 50 Slowest Speed 60 | 50 50 50 60 Overloaded Moves . | . . . . Propulsion Burnouts . | . . . . Robots Hopped . | . . . . Cave-ins Triggered . | . . . . Exploration Rate (%) 28 | 4 36 43 29 Regions Visited 3 Branch Regions . Pre-discovered Areas . | . . . . Known Exits Taken . | . . . . Unknown Exits Taken 3 | 1 1 1 . Scrap Searched . | . . . . Spaces Dug . | . . . . Terrain Destroyed . | . . . . Melee . | . . . . Projectile . | . . . . AOE . | . . . . Terrain Rammed . | . . . . Walls Destroyed . | . . . . Machines Disabled . | . . . . Actions | -11 -10 -9 -8 --------- Run | Jun Mat Mat Mat Total 579 | 17 171 229 162 Wait 2 | . . . 2 Move 546 | 17 163 218 148 Hop . | . . . . Pick Up 6 | . 2 4 . Fast Attach 3 | . . . 3 Attach . | . . . . Detach . | . . . . Swap . | . . . . Drop 1 | . . 1 . Fire . | . . . . Melee . | . . . . Ram 21 | . 6 6 9 Kick . | . . . . Crush . | . . . . Escape Stasis . | . . . . Rewire . | . . . . Trap . | . . . . Miscellaneous . | . . . . Route ------- -11/Junkyard -10/Materials -9/Materials (discovered 2 exits: [*Mat] / [*Min]) -8/Materials History --------- Turn | Location | Event 3 | -11/Junkyard | Discovered new exit (range 15) 10 | -11/Junkyard | Entered Materials 92 | -10/Materials | Discovered new exit (range 16) 98 | -10/Materials | Core integrity fell below 50% 100 | -10/Materials | Entered another Materials area 100 | -9/Materials | Evolved 2 slots: Propulsion x2 160 | -9/Materials | Discovered new exit (range 12) 167 | -9/Materials | Core integrity fell below 50% 209 | -9/Materials | Discovered new exit (range 15) 220 | -9/Materials | Entered another Materials area 220 | -8/Materials | Evolved 2 slots: Utility x2 299 | -8/Materials | Core integrity fell below 50% 307 | -8/Materials | Core integrity fell below 20% 310 | -8/Materials | Destroyed by G-50 Soldier with Heavy Laser Last Messages --------------- 00270_ Slammed into U-05 Engineer. 00270_ Destabilizing: System corrupted (+2). 00272_ Slammed into U-05 Engineer. 00273_ Slammed into A-02 Transporter. 00277_ C-30 ARC bursts open, deploying its payload. 00277_ S-10 Pest unfolds itself. 00283_ ALERT: Hostiles spotted, dispatching reinforcements to Terminal M007. 00285_ Slammed into U-05 Engineer. 00285_ Destabilizing: Core damaged (-11). 00286_ ALERT: Construction progress impeded, dispatching reinforcements to local area. 00288_ S-10 Pest suffers critical hit (Burn). 00289_ 7IVNLUBAKWG L1GN XH4UCN038/N7O,2A&QTKMW 00294_ Acquired Airjet. 00298_ S-10 Pest destroyed. 00298_ Acquired Airjet. 00300_ Airjet destroyed. 00304_ Critical hit (Burn: +37). 00305_ Slammed into G-50 Soldier. 00306_ G-47 Trooper suffers critical hit (Burn). Map ----- +----------------------------------------------------+ | | | ???????????????????????????????? | | ???????????????????????????????? | | ???????????????????????????????? | | ???????????????????????????????? | | ???????????????????????????????? | | ???????????????????????????????? | | ???????????????????????????????? | | ???????????????????????????????? | | ???????????????????????????????? | | ???????????????????????????????? | | ???????????????????????????????? | | ???????????????????????????????? | | ???????????????????????????????? | | ???????????????????????????????? | | ???????????????????????????????? | | ???????????????????????????????? | | ???????????????????????????????? | | ???????????????????????????????? | | ???????????????????????????????? | | ???????????????????????????????? | | ??###################??????????? | | ??# # / #??????????? | | ??# ! # """ #??????????? | | ??# # "Y" #??????????? | | ??# @ #? ????????????? | | ???####g########+#?????????????? | | ??????# s #?????????????? | | ??????#gg #?????????????? | | ??????# !! [ #?????????????? | | ??????# !! ! ##?????#+#????? | | ??????# g! T#?????# #??### | | ??????#gg ######## #??? | | ??"" + =%[ #???? | | ?? G" # ######## #????? | | ??"" # #??????#! #????? | | ?? + #??##### ###??? | | ?######### #??#!! /// #### | | ?????????# #??#!! /// | | ?????????# #??#!! /// | | ?????????# #??#!! % | | ?????????# #??#!! #### | | ?????????? ???#!! #######??? | | ?????????? ???##### #????????? | | ??????????????????# #????????? | | ????????????????? ????????? | | ???????????????? ????????? | | ??????????????? ????????? | | ?????????????? ????????? | | ?????????????? "?????????? | +----------------------------------------------------+ Best States ------------- Heat Dissipation 31 Energy Generation 5 Energy Capacity 100 Matter Stores 300 Matter Capacity 300 Sight Range 16 Terrain Scan Density 10 Evasion (%) 50 Item Schematics ----------------- None Robot Schematics ------------------ None Fabricated ------------ Nothing Alien Tech Used ----------------- None Achievements -------------- None Challenges ------------ None Game ------ Seed WarpHackingBlaster Manual? 0 Play Time 00:04:53 Cumulative 116.1 hours Start 2023.04.16 @ 23:59:41 End 2023.04.17 @ 00:03:21 Sessions 1 Manual Loads 0 Difficulty Rogue Special Mode None Game No. 320 Rogue 320 Adventurer 0 Explorer 0 Win Type - Total 4 Types 4/0/0/0/0/0/0/0/0 Lore% 57 Gallery% 59 Achievement% 53 Wizard Run 0 Options --------- ASCII 0 Keyboard 0 Movement Numpad Keybinds 0 Fullscreen 1 Font 12/Smallcaps Map View 83x54 Tactical HUD 1 Map Filters NONE Filters NONE Steam 1 RUN: ffb0aeb8-4110-4510-bc95-64178b2873f5